bitfinex/quotes_SOLUSD_20230111
["timestamp","ask_amount","ask_price","bid_price","bid_amount"]
[1673409577189,46.81,16.028,16.016,20.0]
[1673409577403,20.0,16.028,16.017,21.92]
[1673409579813,20.0,16.028,16.017,20.0]
[1673409580031,20.0,16.026,16.017,20.0]
[1673409580247,20.0,16.026,16.015,20.0]
[1673409582026,46.81,16.027,16.015,20.0]
[1673409582218,46.81,16.027,16.016,21.92]
[1673409582552,20.0,16.028,16.017,20.0]
[1673409583374,46.81,16.027,16.017,20.0]
[1673409583801,46.81,16.028,16.017,20.0]
[1673409585598,20.0,16.027,16.017,20.0]
[1673409586330,20.0,16.025,16.015,20.0]
[1673409586541,20.0,16.025,16.014,20.0]
[1673409588841,20.0,16.025,16.014,40.0]
[1673409589260,20.0,16.025,16.014,20.0]
[1673409589473,20.0,16.025,16.01,46.86]
[1673409589803,63.82,16.024,16.007,66.87]
[1673409590009,46.82,16.024,16.007,20.0]
[1673409590213,20.0,16.023,16.007,71.36760125]
[1673409590425,46.82,16.022,16.007,71.36760125]
[1673409590748,46.82,16.022,16.008,1.92]
[1673409590955,46.82,16.022,16.009,20.0]
[1673409591148,46.82,16.022,16.01,21.92]
[1673409591885,46.82,16.022,16.01,1.92]
[1673409593167,46.82,16.022,16.01,21.92]
[1673409597475,20.0,16.021,16.01,20.0]
[1673409597681,20.0,16.021,16.009,20.0]
[1673409598015,20.0,16.019,16.008,20.0]
[1673409598210,20.0,16.019,16.009,1.92]
[1673409602198,20.0,16.019,16.009,0.96]
[1673409602428,20.0,16.019,16.008,20.0]
[1673409602637,46.83,16.018,16.008,20.0]
[1673409602954,46.83,16.018,16.004,20.0]
[1673409603266,20.0,16.017,16.004,20.0]
[1673409603579,20.0,16.015,16.003,5.6207776]
[1673409603789,46.85,16.014,16.003,5.6207776]
[1673409604191,20.0,16.013,16.003,5.6207776]
[1673409604407,46.85,16.012,16.003,5.6207776]
[1673409604612,20.0,16.01,16.003,5.6207776]
[1673409605053,66.86,16.01,16.003,5.6207776]
[1673409605779,46.86,16.01,16.003,5.6207776]
[1673409605998,114.8333,16.011,16.003,5.6207776]
[1673409606401,20.0,16.01,16.003,5.6207776]
[1673409607455,138.0309,16.011,16.003,5.6207776]
[1673409607668,118.0309,16.011,16.003,5.6207776]
[1673409608300,66.86,16.01,16.003,5.6207776]
[1673409617570,187.5,16.009,15.973,129.77830993]
[1673409617803,187.5,16.009,15.984,104.495]
[1673409617804,26.54,16.0,15.984,104.495]
[1673409617982,20.0,15.998,15.984,118.8259214]
[1673409618181,20.0,15.996,15.984,118.8259214]
[1673409618396,20.0,15.996,15.984,14.3309214]
[1673409618604,46.9,15.997,15.984,66.93]
[1673409618825,46.9,15.997,15.984,81.2609214]
[1673409619033,46.89,15.999,15.985,21.92]
[1673409619452,46.89,15.999,15.986,61.2609214]
[1673409619664,20.0,15.998,15.986,61.2609214]
[1673409619980,46.89,15.999,15.987,14.3309214]
[1673409620194,46.89,15.999,15.987,34.3309214]
[1673409620401,46.89,15.999,15.988,20.0]
[1673409621558,46.89,15.999,15.988,34.3309214]
[1673409621774,46.89,15.999,15.989,1.92]
[1673409622108,26.54,16.0,15.989,1.92]
[1673409622723,46.88,16.001,15.989,21.92]
[1673409622934,112.124,16.0,15.99,20.0]
[1673409624201,112.124,16.0,15.989,21.92]
[1673409624948,20.0,15.999,15.989,21.92]
[1673409625146,112.124,16.0,15.989,21.92]
[1673409625886,20.0,15.999,15.989,21.92]
[1673409626826,112.124,16.0,15.989,21.92]
[1673409627456,20.0,15.999,15.989,21.92]
[1673409627660,20.0,16.002,15.989,21.92]
[1673409627878,46.86,16.008,15.991,20.0]
[1673409628203,26.36,16.01,15.991,20.0]
[1673409628204,20.0,16.007,15.993,20.0]
[1673409628411,20.0,16.007,15.994,67.87]
[1673409628733,20.0,16.007,15.995,0.96]
[1673409629071,20.0,16.007,15.996,47.86]
[1673409629668,20.0,16.007,15.997,20.0]
[1673409632409,46.87,16.006,15.997,20.0]
[1673409632598,20.0,16.005,15.991,20.0]
[1673409632825,20.0,16.003,15.991,20.0]
[1673409633658,20.0,16.003,15.991,34.3309214]
[1673409635241,20.0,16.003,15.991,14.3309214]
[1673409635455,20.0,16.001,15.99,119.7578]
[1673409635883,20.0,15.999,15.99,119.7578]
[1673409637776,20.0,15.999,15.987,14.3309214]
[1673409638003,20.0,15.999,15.988,20.0]
[1673409638711,63.89,15.998,15.986,20.0]
[1673409638932,20.0,15.997,15.986,20.0]
[1673409639144,46.9,15.996,15.986,20.0]
[1673409639672,20.0,15.997,15.986,20.0]
[1673409640825,20.0,15.997,15.986,40.0]
[1673409641236,46.89,15.998,15.986,40.0]
[1673409642400,20.0,15.997,15.986,20.0]
[1673409642806,20.0,15.995,15.986,20.0]
[1673409643979,46.9,15.996,15.986,20.0]
[1673409644204,46.89,15.998,15.986,20.0]
[1673409644625,20.0,15.997,15.986,20.0]
[1673409644821,46.9,15.996,15.986,20.0]
[1673409645242,20.0,15.997,15.986,20.0]
[1673409647463,46.89,15.998,15.986,40.0]
[1673409647780,46.89,15.999,15.987,21.92]
[1673409647980,136.3367,16.0,15.988,20.0]
[1673409648497,46.89,15.999,15.988,20.0]
[1673409648713,136.3367,16.0,15.988,20.0]
[1673409650608,46.89,15.999,15.988,20.0]
[1673409651221,46.89,15.999,15.989,14.85302779]
[1673409651437,136.3367,16.0,15.99,20.0]
[1673409651676,136.3367,16.0,15.988,20.0]
[1673409652711,20.0,15.999,15.988,20.0]
[1673409652908,66.89,15.999,15.988,20.0]
[1673409653119,66.89,15.999,15.987,20.0]
[1673409660086,66.89,15.999,15.986,20.0]
[1673409660087,17.0,15.998,15.986,20.0]
[1673409660275,46.9,15.997,15.986,20.0]
[1673409660482,46.9,15.997,15.98,46.95]
[1673409660697,37.0,15.996,15.979,5.6207776]
[1673409661027,46.9,15.995,15.979,5.6207776]
[1673409661238,37.0,15.994,15.979,5.6207776]
[1673409661432,46.91,15.993,15.979,5.6207776]
[1673409661643,20.0,15.991,15.979,5.6207776]
[1673409661853,20.0,15.989,15.979,5.6207776]
[1673409662060,46.92,15.988,15.98,20.0]
[1673409662384,20.0,15.987,15.98,20.0]
[1673409662594,46.93,15.986,15.98,20.0]
[1673409663449,46.92,15.988,15.98,20.0]
[1673409663977,20.0,15.987,15.98,20.0]
[1673409664181,46.93,15.986,15.98,20.0]
[1673409665438,20.0,15.985,15.98,20.0]
[1673409665948,46.93,15.984,15.98,20.0]
[1673409666159,20.0,15.985,15.98,20.0]
[1673409666805,46.93,15.986,15.98,20.0]
[1673409667009,20.0,15.987,15.98,20.0]
[1673409668380,46.92,15.988,15.98,20.0]
[1673409669132,46.91,15.993,15.98,20.0]
[1673409669331,46.89,15.998,15.981,43.33302779]
[1673409669536,20.0,15.997,15.982,20.0]
[1673409669746,46.9,15.996,15.983,1.92]
[1673409669955,20.0,15.995,15.983,1.92]
[1673409670392,46.9,15.996,15.983,1.92]
[1673409670592,20.0,15.999,15.984,29.78]
[1673409670799,20.0,15.999,15.985,21.92]
[1673409671020,20.0,15.999,15.986,52.33]
[1673409671233,20.0,15.999,15.986,67.18302779]
[1673409674380,20.0,15.999,15.986,52.33]
[1673409675116,20.0,15.999,15.986,67.18302779]
[1673409675752,20.0,15.999,15.987,20.0]
[1673409675944,20.0,15.999,15.988,43.28]
[1673409676154,20.0,15.999,15.989,20.0]
[1673409676591,109.5967,16.0,15.989,20.0]
[1673409676795,109.5967,16.0,15.989,43.61]
[1673409677332,20.0,15.999,15.989,43.61]
[1673409678382,17.0,15.998,15.989,20.0]
[1673409678589,17.0,15.998,15.985,26.41]
[1673409678787,20.0,15.997,15.986,20.0]
[1673409683721,66.9,15.997,15.986,20.0]
[1673409683931,20.0,15.997,15.986,20.0]
[1673409684141,20.0,15.997,15.985,20.0]
[1673409685401,20.0,15.997,15.98,34.85302779]
[1673409685402,26.65,15.99,15.979,5.6207776]
[1673409685626,20.0,15.988,15.98,20.0]
[1673409685839,20.0,15.988,15.978,111.42230539]
[1673409686046,20.0,15.988,15.978,96.5692776]
[1673409687628,20.0,15.988,15.979,20.0]
[1673409689602,20.0,15.986,15.977,20.0]
[1673409689816,20.0,15.986,15.974,20.0]
[1673409690777,46.93,15.985,15.97,134.9531]
[1673409690992,20.0,15.984,15.97,125.44612779]
[1673409691178,20.0,15.982,15.97,125.44612779]
[1673409692760,20.0,15.982,15.97,110.5931]
[1673409694549,20.0,15.982,15.971,1.92]
[1673409694759,20.0,15.982,15.971,15.7]
[1673409698672,20.0,15.983,15.971,15.7]
[1673409698874,109.4652,15.996,15.972,62.07720779]
[1673409699187,20.0,15.991,15.974,20.0]
[1673409699512,20.0,15.991,15.975,24.11]
[1673409699710,66.91,15.991,15.976,20.0]
[1673409699914,66.91,15.991,15.977,23.16]
[1673409700131,66.91,15.991,15.978,20.0]
[1673409701500,46.91,15.991,15.979,20.0]
[1673409701823,46.91,15.994,15.98,21.92]
[1673409702029,46.91,15.994,15.981,29.47]
[1673409702231,20.0,15.991,15.981,29.47]
[1673409702557,20.0,15.991,15.979,31.01]
[1673409702773,20.0,15.991,15.98,20.0]
[1673409703389,20.0,15.991,15.981,32.2]
[1673409705912,66.9,15.995,15.981,32.2]
[1673409706114,46.9,15.995,15.982,20.0]
[1673409706326,136.4467,16.0,15.984,20.0]
[1673409706327,66.9,15.997,15.984,20.0]
[1673409706541,20.0,15.997,15.985,20.0]
[1673409706956,20.0,15.997,15.986,36.83]
[1673409707171,20.0,15.997,15.987,20.0]
[1673409707705,20.0,15.998,15.985,20.0]
[1673409708120,20.0,15.998,15.985,34.85302779]
[1673409708953,20.0,15.998,15.986,36.38]
[1673409709170,20.0,15.999,15.987,20.0]
[1673409710201,20.0,15.997,15.987,20.0]
[1673409710417,20.0,15.997,15.984,20.0]
[1673409710627,20.0,15.997,15.984,56.37]
[1673409711268,46.89,15.998,15.984,56.37]
[1673409711473,66.89,15.999,15.985,20.0]
[1673409711684,20.0,15.999,15.986,36.06]
[1673409711897,20.0,15.999,15.987,20.0]
[1673409712117,46.89,15.998,15.987,20.0]
[1673409712321,20.0,15.997,15.987,20.0]
[1673409712742,20.0,15.997,15.986,20.0]
[1673409715271,20.0,15.997,15.985,20.0]
[1673409721774,20.0,15.995,15.98,37.76]
[1673409721988,20.0,15.995,15.978,14.92]
[1673409721989,63.91,15.994,15.978,14.92]
[1673409722416,20.0,15.993,15.978,14.92]
[1673409722830,20.0,15.991,15.978,14.92]
[1673409723673,20.0,15.991,15.979,20.0]
[1673409735450,20.0,15.989,15.979,20.0]
[1673409737751,20.0,15.989,15.978,20.0]
[1673409740072,17.0,15.988,15.978,20.0]
[1673409740395,66.93,15.987,15.975,20.0]
[1673409740612,66.93,15.987,15.971,34.85302779]
[1673409740613,66.93,15.987,15.972,47.96]
[1673409740794,66.93,15.987,15.971,47.42]
[1673409741002,66.93,15.987,15.971,20.0]
[1673409741240,17.0,15.986,15.97,113.7528]
[1673409741419,46.93,15.985,15.97,113.7528]
[1673409741633,130.3682,15.984,15.97,113.7528]
[1673409741863,66.94,15.983,15.97,113.7528]
[1673409742605,20.0,15.982,15.97,113.7528]
[1673409742930,46.94,15.981,15.97,113.7528]
[1673409743332,20.0,15.98,15.97,113.7528]
[1673409763957,113.3682,15.984,15.97,128.47018735]
[1673409764163,113.3682,15.984,15.971,21.92]
[1673409764578,113.3682,15.984,15.97,113.7528]
[1673409764795,20.0,15.983,15.97,113.7528]
[1673409765859,20.0,15.983,15.971,20.0]
[1673409767325,20.0,15.983,15.97,128.47018735]
[1673409771333,20.0,15.983,15.97,113.7528]
[1673409777428,20.0,15.981,15.97,113.7528]
[1673409780707,20.0,15.979,15.97,113.7528]
[1673409782687,20.0,15.979,15.965,61.04600056]
[1673409782910,20.0,15.979,15.966,20.0]
[1673409785647,20.0,15.979,15.966,40.0]
[1673409788262,20.0,15.979,15.966,20.0]
[1673409790056,66.95,15.979,15.966,20.0]
[1673409801095,66.95,15.979,15.967,20.0]
[1673409801290,66.95,15.979,15.968,20.0]
[1673409801506,66.95,15.979,15.966,20.0]
[1673409802056,66.95,15.979,15.967,2.685]
[1673409802257,20.0,15.979,15.966,39.11638735]
[1673409803428,93.64,15.98,15.966,39.11638735]
[1673409803738,93.64,15.98,15.967,1.92]
[1673409804561,93.64,15.98,15.966,39.11638735]
[1673409806897,93.64,15.98,15.966,34.71738735]
[1673409808370,46.95,15.98,15.967,1.92]
[1673409808553,66.94,15.981,15.967,1.92]
[1673409809296,46.94,15.981,15.969,20.0]
[1673409809511,46.94,15.982,15.97,21.92]
[1673409812553,46.94,15.982,15.97,1.92]
[1673409815635,46.94,15.982,15.969,20.0]
[1673409823817,17.0,15.981,15.969,20.0]
[1673409824029,46.95,15.98,15.969,20.0]
[1673409826251,46.94,15.982,15.969,20.0]
[1673409830998,20.0,15.981,15.969,20.0]
[1673409831200,46.95,15.98,15.969,20.0]
[1673409831420,46.95,15.98,15.969,40.0]
[1673409831843,46.95,15.98,15.97,21.92]
[1673409832050,46.94,15.983,15.97,21.92]
[1673409832235,46.92,15.988,15.971,89.27861321]
[1673409832450,20.0,15.998,15.972,120.22755864]
[1673409832451,46.91,15.991,15.972,120.22755864]
[1673409832767,20.0,15.99,15.975,2.31522378]
[1673409832977,46.91,15.991,15.977,22.31522378]
[1673409833188,20.0,15.991,15.979,2.31522378]
[1673409833403,46.91,15.991,15.981,2.31522378]
[1673409833608,20.0,15.99,15.979,2.31522378]
[1673409834882,20.0,15.988,15.979,2.31522378]
[1673409835201,20.0,15.988,15.976,1.56829946]
[1673409835202,46.93,15.987,15.976,1.56829946]
[1673409835397,46.93,15.987,15.975,20.0]
[1673409835607,20.0,15.986,15.976,1.53849224]
[1673409835816,20.0,15.986,15.975,20.0]
[1673409837610,20.0,15.986,15.974,20.0]
[1673409838145,20.0,15.986,15.975,20.0]
[1673409839175,46.93,15.987,15.976,1.56890283]
[1673409840437,46.93,15.987,15.975,20.0]
[1673409840649,46.93,15.987,15.976,1.54138109]
[1673409840877,46.93,15.987,15.975,20.0]
[1673409841081,46.93,15.987,15.976,1.58766098]
[1673409841822,46.93,15.987,15.975,20.0]
[1673409842458,46.93,15.987,15.974,40.0]
[1673409842664,20.0,15.986,15.965,35.42]
[1673409842854,20.0,15.986,15.96,60.8222]
[1673409842855,46.93,15.985,15.968,14.71738735]
[1673409843097,20.0,15.984,15.969,20.0]
[1673409843293,46.94,15.983,15.969,20.0]
[1673409844218,20.0,15.982,15.969,20.0]
[1673409844423,46.94,15.981,15.969,20.0]
[1673409844662,46.94,15.981,15.97,20.0]
[1673409845180,46.94,15.983,15.97,20.0]
[1673409845372,20.0,15.982,15.97,20.0]
[1673409845579,46.94,15.981,15.97,20.0]
[1673409848960,46.94,15.981,15.971,21.92]
[1673409849188,112.2406,15.984,15.971,21.92]
[1673409850630,46.94,15.983,15.971,21.92]
[1673409852439,20.0,15.982,15.971,1.92]
[1673409852627,20.0,15.982,15.97,20.0]
[1673409853054,20.0,15.982,15.969,20.0]
[1673409853271,46.94,15.981,15.969,20.0]
[1673409853807,20.0,15.98,15.969,20.0]
[1673409854205,46.94,15.981,15.969,20.0]
[1673409855066,20.0,15.98,15.969,20.0]
[1673409855474,46.95,15.979,15.969,20.0]
[1673409855674,46.95,15.979,15.967,114.6263]
[1673409855675,20.0,15.978,15.968,20.0]
[1673409855884,46.95,15.977,15.968,20.0]
[1673409856093,46.95,15.979,15.968,20.0]
[1673409856327,46.95,15.979,15.968,40.0]
[1673409856638,20.0,15.978,15.968,20.0]
[1673409856831,46.95,15.977,15.968,20.0]
[1673409857043,20.0,15.978,15.968,20.0]
[1673409858528,20.0,15.976,15.968,20.0]
[1673409858735,46.96,15.975,15.963,20.0]
[1673409859351,46.96,15.975,15.962,137.9835]
[1673409859572,20.0,15.974,15.962,137.9835]
[1673409860309,46.96,15.975,15.962,137.9835]
[1673409863174,20.0,15.974,15.962,117.9835]
[1673409863571,46.97,15.973,15.962,117.9835]
[1673409867783,20.0,15.974,15.962,117.9835]
[1673409874207,46.96,15.975,15.963,20.0]
[1673409876492,20.0,15.974,15.962,117.9835]
[1673409878831,20.0,15.974,15.963,20.0]
[1673409879022,20.0,15.974,15.962,117.9835]
[1673409879233,20.0,15.974,15.963,20.0]
[1673409879439,20.0,15.974,15.962,117.9835]
[1673409880175,20.0,15.974,15.963,20.0]
[1673409880701,128.4432,15.976,15.963,20.0]
[1673409881976,128.4432,15.976,15.962,117.9835]
[1673409882192,128.4432,15.976,15.963,20.0]
[1673409883227,128.4432,15.976,15.962,117.9835]
[1673409885243,108.4432,15.976,15.963,40.0]
[1673409885434,108.4432,15.976,15.964,0.96]
[1673409885646,108.4432,15.976,15.965,0.96]
[1673409885853,73.79,15.98,15.966,0.96]
[1673409886062,46.94,15.982,15.967,0.96]
[1673409886276,46.94,15.983,15.968,0.96]
[1673409886504,20.0,15.982,15.968,0.96]
[1673409886708,46.94,15.981,15.968,20.96]
[1673409889551,46.94,15.981,15.968,20.0]
[1673409889869,20.0,15.98,15.968,20.0]
[1673409890067,20.0,15.98,15.967,20.96]
[1673409892189,46.94,15.981,15.967,20.96]
[1673409892371,20.0,15.98,15.967,20.96]
[1673409892584,46.95,15.979,15.967,20.96]
[1673409893022,46.95,15.979,15.967,20.46]
[1673409893335,46.95,15.979,15.967,20.0]
[1673409893856,20.0,15.978,15.967,20.0]
[1673409894067,46.95,15.977,15.967,20.0]
[1673409894259,153.3,15.99,15.966,20.0]
[1673409894472,136.256,16.0,15.982,3.0744512]
[1673409894896,136.256,16.0,15.983,15.06303625]
[1673409895114,46.89,15.999,15.984,3.0744512]
[1673409895639,46.89,15.999,15.985,16.10736524]
[1673409895862,46.89,15.999,15.986,3.0744512]
[1673409896178,46.89,15.999,15.986,16.10736524]
[1673409896360,46.86,16.008,15.987,48.85]
[1673409896574,46.86,16.008,15.989,20.0]
[1673409896786,46.86,16.008,15.99,21.92]
[1673409897008,46.86,16.008,15.991,20.0]
[1673409897228,46.86,16.008,15.991,36.10736524]
[1673409897412,46.86,16.008,15.992,1.92]
[1673409897622,46.86,16.008,15.992,18.02736524]
[1673409898262,46.86,16.008,15.992,16.10736524]
[1673409898911,46.86,16.008,15.991,20.0]
[1673409899221,46.86,16.008,15.992,1.92]
[1673409901327,46.86,16.009,15.992,17.30298309]
[1673409901531,20.0,16.008,15.993,20.0]
[1673409901725,46.87,16.007,15.993,20.0]
[1673409901935,46.87,16.007,15.993,35.38298309]
[1673409902788,46.87,16.007,15.99,151.7222]
[1673409902998,20.0,16.006,15.99,131.7222]
[1673409903214,46.87,16.005,15.99,131.7222]
[1673409904147,46.87,16.005,15.991,20.0]
[1673409904370,46.87,16.007,15.991,20.0]
[1673409904579,20.0,16.006,15.99,131.7222]
[1673409904794,46.87,16.005,15.991,20.0]
[1673409905410,46.87,16.007,15.991,20.0]
[1673409905823,20.0,16.006,15.991,20.0]
[1673409906036,46.87,16.005,15.991,20.0]
[1673409906671,46.87,16.006,15.991,20.0]
[1673409906914,46.87,16.007,15.991,35.38298309]
[1673409907122,46.87,16.007,15.991,20.0]
[1673409907538,20.0,16.006,15.991,20.0]
[1673409907754,46.87,16.005,15.991,20.0]
[1673409908792,46.87,16.007,15.991,20.0]
[1673409909117,20.0,16.006,15.991,20.0]
[1673409909307,46.87,16.005,15.991,20.0]
[1673409911732,20.0,16.004,15.99,147.10518309]
[1673409911943,46.88,16.003,15.99,147.10518309]
[1673409912479,46.87,16.005,15.991,20.0]
[1673409920768,46.87,16.005,15.99,131.7222]
[1673409920996,26.69,16.0,15.99,131.7222]
[1673409927092,66.89,15.999,15.98,20.0]
[1673409927285,17.0,15.998,15.98,20.0]
[1673409927495,66.9,15.997,15.98,20.0]
[1673409927704,17.0,15.996,15.98,54.43]
[1673409927931,46.9,15.995,15.98,54.43]
[1673409928144,46.9,15.995,15.982,15.38298309]
[1673409928458,46.9,15.996,15.982,15.38298309]
[1673409928671,46.89,15.998,15.982,15.38298309]
[1673409929608,46.89,15.998,15.983,20.0]
[1673409930027,46.89,15.998,15.983,35.38298309]
[1673409933605,46.89,15.998,15.982,22.10298309]
[1673409933812,20.0,15.997,15.983,1.92]
[1673409935184,20.0,15.997,15.982,22.10298309]
[1673409935397,63.9,15.996,15.98,50.34]
[1673409935710,20.0,15.995,15.98,50.34]
[1673409936748,46.9,15.994,15.98,50.34]
[1673409936959,20.0,15.995,15.98,50.34]
[1673409937371,46.9,15.996,15.98,50.34]
[1673409937587,46.9,15.997,15.982,1.92]
[1673409940416,46.9,15.997,15.982,0.96]
[1673409940630,20.0,15.995,15.98,50.34]
[1673409940856,66.9,15.995,15.98,50.34]
[1673409942838,66.9,15.995,15.98,20.0]
[1673409943598,46.9,15.995,15.98,20.0]
[1673409945718,46.9,15.995,15.98,46.95]
[1673409945908,37.0,15.994,15.98,20.0]
[1673409946115,46.91,15.993,15.98,20.0]
[1673409951389,46.91,15.993,15.979,119.1805]
[1673409951579,46.91,15.993,15.98,20.0]
[1673409952021,46.91,15.993,15.98,40.0]
[1673409952424,17.0,15.992,15.98,20.0]
[1673409952634,68.54284187,15.991,15.98,20.0]
[1673409952855,17.0,15.99,15.98,20.0]
[1673409953062,1.86397147,15.989,15.98,20.0]
[1673409954539,21.86397147,15.989,15.98,20.0]
[1673409955257,21.86397147,15.989,15.976,110.5183]
[1673409955467,291.42,15.988,15.961,109.4993]
[1673409955800,133.52,15.98,15.961,109.4993]
[1673409956009,133.52,15.98,15.962,33.11]
[1673409956010,63.95,15.979,15.962,33.11]
[1673409956204,20.0,15.978,15.962,53.11]
[1673409956415,20.0,15.978,15.962,33.11]
[1673409956625,20.0,15.978,15.963,20.0]
[1673409956836,46.95,15.977,15.963,20.0]
[1673409957050,66.95,15.978,15.963,20.0]
[1673409957881,66.95,15.978,15.964,20.0]
[1673409958113,20.0,15.976,15.963,20.0]
[1673409958306,20.0,15.976,15.962,33.11]
[1673409958512,63.96,15.975,15.961,109.4993]
[1673409959477,46.96,15.975,15.961,109.4993]
[1673409960301,20.0,15.974,15.961,109.4993]
[1673409962211,46.96,15.975,15.961,109.4993]
[1673409962621,17.0,15.974,15.961,109.4993]
[1673409962818,46.97,15.973,15.961,109.4993]
[1673409963031,46.96,15.975,15.961,109.4993]
[1673409963355,46.95,15.977,15.962,20.0]
[1673409963566,66.95,15.978,15.962,20.0]
[1673409964506,46.95,15.978,15.962,20.0]
[1673409964725,93.79,15.98,15.964,20.0]
[1673409965041,93.69,15.98,15.966,20.0]
[1673409965259,26.74,15.98,15.967,20.0]
[1673409966394,20.0,15.979,15.967,20.0]
[1673409967041,26.74,15.98,15.967,20.0]
[1673409967248,20.0,15.979,15.967,20.0]
[1673409967574,26.74,15.98,15.967,20.0]
[1673409968100,3.0744512,15.982,15.968,21.92]
[1673409968306,3.0744512,15.982,15.968,250.0804]
[1673409968509,66.93,15.985,15.969,29.86]
[1673409968721,66.93,15.985,15.97,20.0]
[1673409969042,1.60913822,15.984,15.97,20.0]
[1673409969246,46.94,15.983,15.969,20.0]
[1673409969452,46.94,15.983,15.969,47.25]
[1673409969663,46.93,15.984,15.969,47.25]
[1673409969867,46.93,15.984,15.969,20.0]
[1673409970080,21.54975719,15.983,15.969,20.0]
[1673409970284,20.0,15.983,15.969,20.0]
[1673409972706,17.0,15.982,15.969,20.0]
[1673409972916,63.94,15.982,15.969,20.0]
[1673409973123,20.0,15.981,15.969,20.0]
[1673409976928,63.94,15.982,15.969,20.0]
[1673409977141,63.94,15.982,15.969,40.0]
[1673409977775,63.94,15.982,15.969,20.0]
[1673409977966,20.0,15.981,15.969,20.0]
[1673409978816,63.94,15.982,15.969,40.0]
[1673409979350,63.94,15.982,15.969,20.0]
[1673409979547,20.0,15.981,15.969,20.0]
[1673409980702,63.94,15.982,15.97,20.0]
[1673409982382,63.94,15.982,15.969,40.0]
[1673409982809,46.94,15.982,15.97,20.0]
[1673409983033,46.93,15.984,15.97,20.0]
[1673409984483,46.93,15.984,15.969,40.0]
[1673409984694,20.0,15.983,15.969,40.0]
[1673409984914,46.94,15.982,15.969,20.0]
[1673409985343,17.0,15.981,15.969,20.0]
[1673409985532,20.0,15.98,15.969,20.0]
[1673409986278,20.0,15.978,15.961,28.29]
[1673409986486,46.95,15.977,15.961,28.29]
[1673409986702,20.0,15.976,15.961,28.29]
[1673409987023,20.0,15.976,15.962,20.0]